[Event "Titled Tuesday Blitz March 14 Late 2023"]
[White "Desideri, Ricardo Maruchi"]
[Black "Gamage, Wanshini Vidusama"]
[WhiteFideId "2110440"]
[BlackFideId "9953752"]
[WhiteElo "1945"]
[BlackElo "2250"]
[Result "0-1"]
[Round "10"]
[TimeControl "180+2"]
[Date "2023.03.14"]
[WhiteClock "0:00:19"]
[BlackClock "0:01:27"]

1. e4 {[%clk 0:02:56]}  c5 {[%clk 0:02:59]} 2. Nf3 {[%clk 0:02:54]}  d6 {[%clk 0:02:59]} 3. d4 {[%clk 0:02:46]}  cxd4 {[%clk 0:03:00]} 4. Nxd4 {[%clk 0:02:45]}  Nf6 {[%clk 0:02:59]} 5. Nc3 {[%clk 0:02:45]}  a6 {[%clk 0:02:58]} 6. Rg1 {[%clk 0:02:43]}  e5 {[%clk 0:02:54]} 7. Nb3 {[%clk 0:02:41]}  h5 {[%clk 0:02:54]} 8. h3 {[%clk 0:02:41]}  Be6 {[%clk 0:02:54]} 9. g4 {[%clk 0:02:41]}  hxg4 {[%clk 0:02:53]} 10. hxg4 {[%clk 0:02:41]}  d5 {[%clk 0:02:52]} 11. g5 {[%clk 0:02:40]}  Nxe4 {[%clk 0:02:51]} 12. Nxe4 {[%clk 0:02:40]}  dxe4 {[%clk 0:02:50]} 13. Qxd8+ {[%clk 0:02:41]}  Kxd8 {[%clk 0:02:51]} 14. Be3 {[%clk 0:02:39]}  Kc7 {[%clk 0:02:42]} 15. O-O-O {[%clk 0:02:37]}  Nc6 {[%clk 0:02:35]} 16. Bg2 {[%clk 0:02:28]}  Bf5 {[%clk 0:02:31]} 17. Nd2 {[%clk 0:02:11]}  Rd8 {[%clk 0:02:24]} 18. Nxe4 {[%clk 0:02:09]}  Rxd1+ {[%clk 0:02:22]} 19. Rxd1 {[%clk 0:02:08]}  Rh2 {[%clk 0:02:19]} 20. Bf3 {[%clk 0:01:55]}  Rh3 {[%clk 0:02:18]} 21. Bg2 {[%clk 0:01:52]}  Rh2 {[%clk 0:02:18]} 22. Bf3 {[%clk 0:01:51]}  Be7 {[%clk 0:02:17]} 23. Ng3 {[%clk 0:01:45]}  Be6 {[%clk 0:02:13]} 24. Be4 {[%clk 0:01:42]}  g6 {[%clk 0:02:11]} 25. a3 {[%clk 0:01:38]}  b6 {[%clk 0:02:11]} 26. b4 {[%clk 0:01:19]}  Nd4 {[%clk 0:02:09]} 27. Bxd4 {[%clk 0:01:15]}  exd4 {[%clk 0:02:10]} 28. Rxd4 {[%clk 0:01:09]}  Bxg5+ {[%clk 0:02:06]} 29. Kd1 {[%clk 0:01:09]}  Rxf2 {[%clk 0:02:05]} 30. Bd3 {[%clk 0:00:56]}  Bf6 {[%clk 0:01:49]} 31. Re4 {[%clk 0:00:50]}  b5 {[%clk 0:01:42]} 32. Ne2 {[%clk 0:00:33]}  Bf5 {[%clk 0:01:41]} 33. Re8 {[%clk 0:00:28]}  Bxd3 {[%clk 0:01:40]} 34. cxd3 {[%clk 0:00:27]}  g5 {[%clk 0:01:35]} 35. Rf8 {[%clk 0:00:22]}  Bb2 {[%clk 0:01:30]} 36. d4 {[%clk 0:00:19]}  Bxa3 {[%clk 0:01:27]} 0-1


[Site "https://www.chess.com"]

[Event "Titled Tuesday Blitz March 14 Late 2023"]
[White "Antonio, Jorge Carlos"]
[Black "Tarnowska, Aleksandra"]
[WhiteFideId "113190"]
[BlackFideId "1180967"]
[WhiteElo "2247"]
[BlackElo "1776"]
[Result "0-1"]
[Round "10"]
[TimeControl "180+2"]
[Date "2023.03.14"]
[WhiteClock "0:00:30"]
[BlackClock "0:00:24"]

1. d4 {[%clk 0:03:00]}  d5 {[%clk 0:02:59]} 2. Nf3 {[%clk 0:03:00]}  Nf6 {[%clk 0:02:59]} 3. Bf4 {[%clk 0:03:00]}  Bf5 {[%clk 0:02:58]} 4. e3 {[%clk 0:03:00]}  c6 {[%clk 0:02:58]} 5. c4 {[%clk 0:02:59]}  e6 {[%clk 0:02:59]} 6. Nc3 {[%clk 0:02:57]}  Bd6 {[%clk 0:02:53]} 7. Ne5 {[%clk 0:02:52]}  Ne4 {[%clk 0:02:35]} 8. Bd3 {[%clk 0:02:45]}  Nxc3 {[%clk 0:02:19]} 9. bxc3 {[%clk 0:02:44]}  Bxd3 {[%clk 0:02:19]} 10. Qxd3 {[%clk 0:02:42]}  Bxe5 {[%clk 0:02:19]} 11. Bxe5 {[%clk 0:02:41]}  Qg5 {[%clk 0:02:19]} 12. O-O {[%clk 0:02:38]}  O-O {[%clk 0:02:16]} 13. Bf4 {[%clk 0:02:35]}  Qg6 {[%clk 0:02:16]} 14. Qxg6 {[%clk 0:02:35]}  hxg6 {[%clk 0:02:15]} 15. cxd5 {[%clk 0:02:32]}  cxd5 {[%clk 0:02:12]} 16. Rab1 {[%clk 0:02:28]}  b6 {[%clk 0:02:10]} 17. Rfc1 {[%clk 0:02:25]}  Rc8 {[%clk 0:02:11]} 18. Kf1 {[%clk 0:02:21]}  Nd7 {[%clk 0:01:45]} 19. Ke2 {[%clk 0:02:15]}  Rc4 {[%clk 0:01:44]} 20. Rb4 {[%clk 0:02:09]}  Rac8 {[%clk 0:01:44]} 21. Rxc4 {[%clk 0:02:08]}  Rxc4 {[%clk 0:01:44]} 22. Kd3 {[%clk 0:02:06]}  f6 {[%clk 0:01:41]} 23. Bd6 {[%clk 0:02:05]}  e5 {[%clk 0:01:34]} 24. Rb1 {[%clk 0:01:51]}  Kf7 {[%clk 0:01:23]} 25. Rb4 {[%clk 0:01:42]}  Rc6 {[%clk 0:01:11]} 26. dxe5 {[%clk 0:01:24]}  fxe5 {[%clk 0:01:11]} 27. Ra4 {[%clk 0:01:14]}  Rxd6 {[%clk 0:01:07]} 28. Rxa7 {[%clk 0:01:13]}  Kf6 {[%clk 0:01:04]} 29. f3 {[%clk 0:01:09]}  Nc5+ {[%clk 0:01:00]} 30. Kc2 {[%clk 0:01:07]}  e4 {[%clk 0:00:58]} 31. f4 {[%clk 0:01:06]}  Rc6 {[%clk 0:00:56]} 32. g4 {[%clk 0:01:03]}  Ne6 {[%clk 0:00:46]} 33. h4 {[%clk 0:01:00]}  d4 {[%clk 0:00:42]} 34. g5+ {[%clk 0:00:52]}  Kf5 {[%clk 0:00:41]} 35. exd4 {[%clk 0:00:51]}  Nxd4+ {[%clk 0:00:41]} 36. Kb2 {[%clk 0:00:51]}  Ne2 {[%clk 0:00:34]} 37. Rxg7 {[%clk 0:00:46]}  Kxf4 {[%clk 0:00:29]} 38. Rf7+ {[%clk 0:00:38]}  Kg3 {[%clk 0:00:24]} 39. Re7 {[%clk 0:00:37]}  Kf3 {[%clk 0:00:24]} 40. Rf7+ {[%clk 0:00:36]}  Nf4 {[%clk 0:00:24]} 41. Rf6 {[%clk 0:00:33]}  Rxf6 {[%clk 0:00:22]} 42. gxf6 {[%clk 0:00:33]}  e3 {[%clk 0:00:22]} 43. f7 {[%clk 0:00:30]}  Ne6 {[%clk 0:00:21]} 44. Kc2 {[%clk 0:00:29]}  e2 {[%clk 0:00:21]} 45. Kd3 {[%clk 0:00:29]}  Kf2 {[%clk 0:00:21]} 46. Kc4 {[%clk 0:00:29]}  e1=Q {[%clk 0:00:22]} 47. Kb5 {[%clk 0:00:29]}  Qxc3 {[%clk 0:00:21]} 48. Kxb6 {[%clk 0:00:29]}  Qg7 {[%clk 0:00:18]} 49. a4 {[%clk 0:00:28]}  Qxf7 {[%clk 0:00:18]} 50. a5 {[%clk 0:00:29]}  Qc7+ {[%clk 0:00:18]} 51. Kb5 {[%clk 0:00:29]}  Nd4+ {[%clk 0:00:18]} 52. Kb4 {[%clk 0:00:29]}  Nc6+ {[%clk 0:00:19]} 53. Kb5 {[%clk 0:00:28]}  Qxa5+ {[%clk 0:00:20]} 54. Kxc6 {[%clk 0:00:29]}  Qh5 {[%clk 0:00:21]} 55. Kd6 {[%clk 0:00:28]}  Qxh4 {[%clk 0:00:22]} 56. Ke6 {[%clk 0:00:29]}  g5 {[%clk 0:00:22]} 57. Kf6 {[%clk 0:00:30]}  g4+ {[%clk 0:00:23]} 58. Kf5 {[%clk 0:00:30]}  g3 {[%clk 0:00:24]} 0-1


[Site "https://www.chess.com"]

[Event "Titled Tuesday Blitz March 14 Late 2023"]
[White "Sarkar, Justin"]
[Black "lisjakzlatko1"]
[WhiteFideId "2010011"]
[WhiteElo "2189"]
[BlackElo "2144"]
[Result "1-0"]
[Round "10"]
[TimeControl "180+2"]
[Date "2023.03.14"]
[WhiteClock "0:00:38"]
[BlackClock "0:00:16"]

1. e4 {[%clk 0:02:45]}  d6 {[%clk 0:02:58]} 2. d4 {[%clk 0:02:42]}  Nf6 {[%clk 0:02:59]} 3. Nd2 {[%clk 0:02:31]}  c6 {[%clk 0:02:58]} 4. Ngf3 {[%clk 0:02:27]}  Bg4 {[%clk 0:02:46]} 5. h3 {[%clk 0:02:24]}  Bh5 {[%clk 0:02:45]} 6. Bd3 {[%clk 0:02:20]}  Nbd7 {[%clk 0:02:38]} 7. O-O {[%clk 0:02:17]}  e5 {[%clk 0:02:36]} 8. c3 {[%clk 0:02:10]}  Be7 {[%clk 0:02:35]} 9. Re1 {[%clk 0:02:07]}  O-O {[%clk 0:02:35]} 10. Nf1 {[%clk 0:02:00]}  Re8 {[%clk 0:02:23]} 11. Ng3 {[%clk 0:01:58]}  Bg6 {[%clk 0:02:19]} 12. Nh4 {[%clk 0:01:54]}  Bf8 {[%clk 0:02:03]} 13. Nhf5 {[%clk 0:01:46]}  h6 {[%clk 0:01:49]} 14. f4 {[%clk 0:01:33]}  exf4 {[%clk 0:01:05]} 15. Bxf4 {[%clk 0:01:32]}  d5 {[%clk 0:01:01]} 16. e5 {[%clk 0:01:24]}  Nh7 {[%clk 0:01:01]} 17. h4 {[%clk 0:01:20]}  Be7 {[%clk 0:00:33]} 18. Nxe7+ {[%clk 0:01:03]}  Qxe7 {[%clk 0:00:33]} 19. Bxg6 {[%clk 0:01:00]}  fxg6 {[%clk 0:00:34]} 20. Qg4 {[%clk 0:01:00]}  Nhf8 {[%clk 0:00:30]} 21. Rf1 {[%clk 0:00:48]}  Ne6 {[%clk 0:00:20]} 22. Qxg6 {[%clk 0:00:41]}  Qxh4 {[%clk 0:00:19]} 23. Nf5 {[%clk 0:00:39]}  Nxf4 {[%clk 0:00:16]} 24. Qxg7# {[%clk 0:00:38]} 1-0


[Site "https://www.chess.com"]

[Event "Titled Tuesday Blitz March 14 Late 2023"]
[White "Hartikainen, Jarmo"]
[Black "Souza, Gustavo Horokoski De"]
[WhiteFideId "503134"]
[BlackFideId "2146584"]
[WhiteElo "2164"]
[BlackElo "1859"]
[Result "1-0"]
[Round "10"]
[TimeControl "180+2"]
[Date "2023.03.14"]
[WhiteClock "0:00:05"]
[BlackClock "0:00:06"]

1. e4 {[%clk 0:03:00]}  e6 {[%clk 0:02:55]} 2. d4 {[%clk 0:03:00]}  d5 {[%clk 0:02:56]} 3. Nc3 {[%clk 0:03:00]}  Nf6 {[%clk 0:02:55]} 4. Bg5 {[%clk 0:03:00]}  Be7 {[%clk 0:02:55]} 5. e5 {[%clk 0:02:59]}  Nfd7 {[%clk 0:02:55]} 6. h4 {[%clk 0:02:59]}  h6 {[%clk 0:02:55]} 7. Bxe7 {[%clk 0:02:58]}  Qxe7 {[%clk 0:02:56]} 8. Qg4 {[%clk 0:02:56]}  O-O {[%clk 0:02:55]} 9. Rh3 {[%clk 0:02:50]}  f5 {[%clk 0:02:52]} 10. Qg6 {[%clk 0:02:37]}  a6 {[%clk 0:02:46]} 11. Rg3 {[%clk 0:02:23]}  Kh8 {[%clk 0:02:45]} 12. Nf3 {[%clk 0:02:18]}  Qf7 {[%clk 0:02:30]} 13. Ne2 {[%clk 0:02:03]}  c5 {[%clk 0:02:29]} 14. c3 {[%clk 0:02:03]}  Nc6 {[%clk 0:02:28]} 15. O-O-O {[%clk 0:02:02]}  Qxg6 {[%clk 0:02:22]} 16. Rxg6 {[%clk 0:02:01]}  cxd4 {[%clk 0:02:19]} 17. cxd4 {[%clk 0:02:00]}  Nb6 {[%clk 0:02:18]} 18. Nf4 {[%clk 0:01:48]}  Nd8 {[%clk 0:02:11]} 19. Bd3 {[%clk 0:01:33]}  Bd7 {[%clk 0:02:06]} 20. h5 {[%clk 0:01:22]}  Be8 {[%clk 0:01:56]} 21. Rg3 {[%clk 0:01:19]}  Rc8+ {[%clk 0:01:53]} 22. Kb1 {[%clk 0:01:18]}  Bf7 {[%clk 0:01:47]} 23. Nh4 {[%clk 0:01:16]}  Re8 {[%clk 0:01:43]} 24. Nhg6+ {[%clk 0:01:11]}  Bxg6 {[%clk 0:01:42]} 25. Nxg6+ {[%clk 0:01:11]}  Kg8 {[%clk 0:01:36]} 26. b3 {[%clk 0:01:05]}  Kf7 {[%clk 0:01:24]} 27. Be2 {[%clk 0:01:00]}  Nd7 {[%clk 0:01:23]} 28. Rc1 {[%clk 0:00:54]}  Rxc1+ {[%clk 0:01:20]} 29. Kxc1 {[%clk 0:00:55]}  Nf8 {[%clk 0:01:20]} 30. Nxf8 {[%clk 0:00:54]}  Kxf8 {[%clk 0:01:18]} 31. Rc3 {[%clk 0:00:54]}  Re7 {[%clk 0:01:12]} 32. Rc8 {[%clk 0:00:50]}  Rd7 {[%clk 0:01:12]} 33. g4 {[%clk 0:00:46]}  fxg4 {[%clk 0:01:03]} 34. Bxg4 {[%clk 0:00:45]}  Ke7 {[%clk 0:01:03]} 35. Kd2 {[%clk 0:00:38]}  Nc6 {[%clk 0:00:54]} 36. Ke3 {[%clk 0:00:36]}  Nb4 {[%clk 0:00:49]} 37. a3 {[%clk 0:00:31]}  Nc6 {[%clk 0:00:49]} 38. Rg8 {[%clk 0:00:28]}  Kf7 {[%clk 0:00:44]} 39. Rc8 {[%clk 0:00:26]}  Na5 {[%clk 0:00:41]} 40. b4 {[%clk 0:00:25]}  Nc4+ {[%clk 0:00:41]} 41. Kd3 {[%clk 0:00:20]}  Nxa3 {[%clk 0:00:40]} 42. f4 {[%clk 0:00:20]}  Nb5 {[%clk 0:00:34]} 43. f5 {[%clk 0:00:20]}  exf5 {[%clk 0:00:24]} 44. Bxf5 {[%clk 0:00:20]}  Rc7 {[%clk 0:00:24]} 45. Bg6+ {[%clk 0:00:20]}  Ke7 {[%clk 0:00:20]} 46. Re8+ {[%clk 0:00:19]}  Kd7 {[%clk 0:00:20]} 47. Rg8 {[%clk 0:00:15]}  Kc6 {[%clk 0:00:20]} 48. e6 {[%clk 0:00:12]}  Kd6 {[%clk 0:00:19]} 49. Bf7 {[%clk 0:00:13]}  Rc3+ {[%clk 0:00:16]} 50. Kd2 {[%clk 0:00:13]}  Rg3 {[%clk 0:00:16]} 51. Rd8+ {[%clk 0:00:13]}  Ke7 {[%clk 0:00:15]} 52. Rd7+ {[%clk 0:00:13]}  Kf8 {[%clk 0:00:14]} 53. Rd8+ {[%clk 0:00:12]}  Ke7 {[%clk 0:00:14]} 54. Rd7+ {[%clk 0:00:13]}  Kf6 {[%clk 0:00:12]} 55. Rxb7 {[%clk 0:00:11]}  Rg2+ {[%clk 0:00:10]} 56. Kd3 {[%clk 0:00:11]}  Rg3+ {[%clk 0:00:10]} 57. Kd2 {[%clk 0:00:11]}  Rg2+ {[%clk 0:00:10]} 58. Ke3 {[%clk 0:00:12]}  Rg3+ {[%clk 0:00:10]} 59. Kf4 {[%clk 0:00:11]}  Rd3 {[%clk 0:00:07]} 60. Bg8 {[%clk 0:00:10]}  Rxd4+ {[%clk 0:00:07]} 61. Kf3 {[%clk 0:00:10]}  Rd3+ {[%clk 0:00:05]} 62. Ke2 {[%clk 0:00:10]}  Rd4 {[%clk 0:00:05]} 63. Rb6 {[%clk 0:00:08]}  Ke7 {[%clk 0:00:04]} 64. Rxa6 {[%clk 0:00:07]}  Re4+ {[%clk 0:00:03]} 65. Kf2 {[%clk 0:00:07]}  Nd6 {[%clk 0:00:03]} 66. Ra7+ {[%clk 0:00:07]}  Kf6 {[%clk 0:00:04]} 67. Bf7 {[%clk 0:00:07]}  Kg5 {[%clk 0:00:04]} 68. b5 {[%clk 0:00:07]}  Nxf7 {[%clk 0:00:04]} 69. exf7 {[%clk 0:00:07]}  Rf4+ {[%clk 0:00:05]} 70. Ke3 {[%clk 0:00:07]}  d4+ {[%clk 0:00:05]} 71. Kd3 {[%clk 0:00:07]}  Rf5 {[%clk 0:00:06]} 72. b6 {[%clk 0:00:06]}  Kxh5 {[%clk 0:00:06]} 73. b7 {[%clk 0:00:05]}  Rf3+ {[%clk 0:00:07]} 74. Kxd4 {[%clk 0:00:05]}  Rxf7 {[%clk 0:00:08]} 75. b8=Q {[%clk 0:00:06]}  Rd7+ {[%clk 0:00:06]} 76. Rxd7 {[%clk 0:00:05]} 1-0


[Site "https://www.chess.com"]

[Event "Titled Tuesday Blitz March 14 Late 2023"]
[White "Duda, Jan-Krzysztof"]
[Black "Bortnyk, Olexandr"]
[WhiteFideId "1170546"]
[BlackFideId "14120828"]
[WhiteElo "2790"]
[BlackElo "2734"]
[Result "1-0"]
[Round "11"]
[TimeControl "180+2"]
[Date "2023.03.14"]
[WhiteClock "0:00:19"]
[BlackClock "0:00:02"]

1. e4 {[%clk 0:03:00]}  Nf6 {[%clk 0:03:00]} 2. e5 {[%clk 0:03:01]}  Nd5 {[%clk 0:03:00]} 3. d4 {[%clk 0:03:01]}  d6 {[%clk 0:03:00]} 4. Nf3 {[%clk 0:03:02]}  dxe5 {[%clk 0:03:00]} 5. Nxe5 {[%clk 0:03:03]}  c6 {[%clk 0:03:01]} 6. Bd3 {[%clk 0:03:00]}  Nd7 {[%clk 0:03:01]} 7. Nf3 {[%clk 0:02:59]}  N7f6 {[%clk 0:03:01]} 8. h3 {[%clk 0:02:58]}  Nb4 {[%clk 0:03:01]} 9. O-O {[%clk 0:02:57]}  Nxd3 {[%clk 0:02:59]} 10. Qxd3 {[%clk 0:02:58]}  g6 {[%clk 0:02:40]} 11. Re1 {[%clk 0:02:48]}  Bg7 {[%clk 0:02:41]} 12. Qe2 {[%clk 0:02:48]}  Bf5 {[%clk 0:02:22]} 13. Na3 {[%clk 0:02:20]}  O-O {[%clk 0:02:11]} 14. c3 {[%clk 0:02:03]}  Re8 {[%clk 0:01:53]} 15. Bf4 {[%clk 0:02:03]}  b5 {[%clk 0:01:51]} 16. Be5 {[%clk 0:02:00]}  a5 {[%clk 0:01:49]} 17. Nc2 {[%clk 0:02:00]}  a4 {[%clk 0:01:42]} 18. Nb4 {[%clk 0:01:55]}  Qb6 {[%clk 0:01:33]} 19. Qe3 {[%clk 0:01:45]}  Rac8 {[%clk 0:01:28]} 20. Rad1 {[%clk 0:01:38]}  Be6 {[%clk 0:01:26]} 21. Rd2 {[%clk 0:01:23]}  Bc4 {[%clk 0:01:11]} 22. a3 {[%clk 0:01:14]}  Red8 {[%clk 0:01:03]} 23. Bf4 {[%clk 0:01:03]}  Re8 {[%clk 0:00:43]} 24. Ne5 {[%clk 0:00:58]}  Bd5 {[%clk 0:00:31]} 25. Bh6 {[%clk 0:00:48]}  Bh8 {[%clk 0:00:31]} 26. Qf4 {[%clk 0:00:42]}  Be6 {[%clk 0:00:25]} 27. Nbd3 {[%clk 0:00:30]}  Nd5 {[%clk 0:00:19]} 28. Qf3 {[%clk 0:00:30]}  Rcd8 {[%clk 0:00:15]} 29. Nc5 {[%clk 0:00:30]}  Bxe5 {[%clk 0:00:14]} 30. Nxe6 {[%clk 0:00:27]}  fxe6 {[%clk 0:00:09]} 31. Rxe5 {[%clk 0:00:27]}  Rd6 {[%clk 0:00:06]} 32. Rde2 {[%clk 0:00:24]}  Nc7 {[%clk 0:00:05]} 33. R2e4 {[%clk 0:00:22]}  Qb8 {[%clk 0:00:04]} 34. Rf4 {[%clk 0:00:22]}  Nd5 {[%clk 0:00:04]} 35. Rf7 {[%clk 0:00:19]}  Nf6 {[%clk 0:00:04]} 36. Rg7+ {[%clk 0:00:20]}  Kh8 {[%clk 0:00:05]} 37. Rxe7 {[%clk 0:00:21]}  Nd7 {[%clk 0:00:02]} 38. Bg7+ {[%clk 0:00:19]}  Kg8 {[%clk 0:00:02]} 39. Qf7# {[%clk 0:00:19]} 1-0


[Site "https://www.chess.com"]

[Event "Titled Tuesday Blitz March 14 Late 2023"]
[White "Makhnev, Denis"]
[Black "Garcia Pantoja, Roberto"]
[WhiteFideId "13707647"]
[BlackFideId "3509265"]
[WhiteElo "2525"]
[BlackElo "2544"]
[Result "1-0"]
[Round "11"]
[TimeControl "180+2"]
[Date "2023.03.14"]
[WhiteClock "0:00:19"]
[BlackClock "0:00:04"]

1. d4 {[%clk 0:03:00]}  Nf6 {[%clk 0:02:58]} 2. c4 {[%clk 0:03:00]}  e6 {[%clk 0:02:59]} 3. Nf3 {[%clk 0:03:00]}  d5 {[%clk 0:03:00]} 4. g3 {[%clk 0:02:58]}  Be7 {[%clk 0:02:59]} 5. Bg2 {[%clk 0:02:59]}  O-O {[%clk 0:03:00]} 6. O-O {[%clk 0:03:00]}  dxc4 {[%clk 0:03:00]} 7. Qc2 {[%clk 0:03:00]}  a6 {[%clk 0:03:00]} 8. a4 {[%clk 0:03:01]}  Nc6 {[%clk 0:03:00]} 9. Qxc4 {[%clk 0:03:01]}  Na5 {[%clk 0:02:59]} 10. Qc2 {[%clk 0:02:57]}  b6 {[%clk 0:02:59]} 11. Ne5 {[%clk 0:02:49]}  Bb7 {[%clk 0:02:58]} 12. Bxb7 {[%clk 0:02:49]}  Nxb7 {[%clk 0:02:59]} 13. Nc6 {[%clk 0:02:48]}  Qe8 {[%clk 0:02:59]} 14. Bg5 {[%clk 0:02:38]}  h6 {[%clk 0:02:57]} 15. Nxe7+ {[%clk 0:02:37]}  Qxe7 {[%clk 0:02:57]} 16. Bxf6 {[%clk 0:02:38]}  Qxf6 {[%clk 0:02:58]} 17. Qxc7 {[%clk 0:02:35]}  Na5 {[%clk 0:02:50]} 18. Qxb6 {[%clk 0:01:23]}  Nc4 {[%clk 0:02:48]} 19. Qb4 {[%clk 0:01:24]}  Rfc8 {[%clk 0:02:46]} 20. Rc1 {[%clk 0:01:17]}  Rab8 {[%clk 0:02:34]} 21. Qc3 {[%clk 0:01:10]}  Rxb2 {[%clk 0:01:58]} 22. Qd3 {[%clk 0:00:54]}  Nd6 {[%clk 0:00:55]} 23. Rxc8+ {[%clk 0:00:54]}  Nxc8 {[%clk 0:00:56]} 24. Qxa6 {[%clk 0:00:36]}  Nb6 {[%clk 0:00:42]} 25. Qd3 {[%clk 0:00:35]}  Nd5 {[%clk 0:00:34]} 26. Nd2 {[%clk 0:00:20]}  Qd8 {[%clk 0:00:14]} 27. a5 {[%clk 0:00:20]}  Nb4 {[%clk 0:00:08]} 28. Qc3 {[%clk 0:00:20]}  Ra2 {[%clk 0:00:07]} 29. Rxa2 {[%clk 0:00:18]}  Nxa2 {[%clk 0:00:08]} 30. Qa3 {[%clk 0:00:18]}  Qd5 {[%clk 0:00:07]} 31. a6 {[%clk 0:00:19]}  Nc3 {[%clk 0:00:03]} 32. Qxc3 {[%clk 0:00:18]}  Qxd4 {[%clk 0:00:04]} 33. Qxd4 {[%clk 0:00:19]}  e5 {[%clk 0:00:04]} 34. Qd8+ {[%clk 0:00:19]} 1-0


[Site "https://www.chess.com"]

[Event "Titled Tuesday Blitz March 14 Late 2023"]
[White "Nakamura, Hikaru"]
[Black "Kramnik, Vladimir"]
[WhiteFideId "2016192"]
[BlackFideId "4101588"]
[WhiteElo "2879"]
[BlackElo "2712"]
[Result "0-1"]
[Round "11"]
[TimeControl "180+2"]
[Date "2023.03.14"]
[WhiteClock "0:01:16"]
[BlackClock "0:00:49"]

1. f3 {[%clk 0:03:00]}  d5 {[%clk 0:02:59]} 2. Kf2 {[%clk 0:03:01]}  e5 {[%clk 0:02:58]} 3. e3 {[%clk 0:03:01]}  Nf6 {[%clk 0:02:58]} 4. d4 {[%clk 0:03:01]}  Bd6 {[%clk 0:02:52]} 5. c4 {[%clk 0:02:56]}  c6 {[%clk 0:02:49]} 6. cxd5 {[%clk 0:02:54]}  cxd5 {[%clk 0:02:40]} 7. Bb5+ {[%clk 0:02:52]}  Nc6 {[%clk 0:02:36]} 8. Nc3 {[%clk 0:02:52]}  O-O {[%clk 0:02:36]} 9. Nge2 {[%clk 0:02:52]}  Re8 {[%clk 0:02:35]} 10. Re1 {[%clk 0:02:50]}  exd4 {[%clk 0:02:16]} 11. exd4 {[%clk 0:02:47]}  Ng4+ {[%clk 0:02:05]} 12. fxg4 {[%clk 0:02:40]}  Qh4+ {[%clk 0:02:05]} 13. g3 {[%clk 0:01:24]}  Qxh2+ {[%clk 0:02:01]} 14. Kf3 {[%clk 0:01:24]}  h5 {[%clk 0:01:21]} 15. gxh5 {[%clk 0:01:24]}  Qxh5+ {[%clk 0:01:12]} 16. Kf2 {[%clk 0:01:25]}  Qh2+ {[%clk 0:01:08]} 17. Kf3 {[%clk 0:01:25]}  Bh3 {[%clk 0:01:01]} 18. Rg1 {[%clk 0:01:21]}  f5 {[%clk 0:00:59]} 19. g4 {[%clk 0:01:15]}  fxg4+ {[%clk 0:00:54]} 20. Rxg4 {[%clk 0:01:16]}  Bxg4+ {[%clk 0:00:50]} 21. Kxg4 {[%clk 0:01:16]}  Qg2+ {[%clk 0:00:49]} 0-1


[Site "https://www.chess.com"]

[Event "Titled Tuesday Blitz March 14 Late 2023"]
[White "Ibarra Jerez, Jose Carlos"]
[Black "Pranav, V"]
[WhiteFideId "2226332"]
[BlackFideId "25060783"]
[WhiteElo "2638"]
[BlackElo "2500"]
[Result "0-1"]
[Round "11"]
[TimeControl "180+2"]
[Date "2023.03.14"]
[WhiteClock "0:00:02"]
[BlackClock "0:01:43"]

1. e4 {[%clk 0:03:00]}  e5 {[%clk 0:03:00]} 2. Nf3 {[%clk 0:02:58]}  Nc6 {[%clk 0:03:00]} 3. Nc3 {[%clk 0:02:59]}  Nf6 {[%clk 0:03:01]} 4. h3 {[%clk 0:02:59]}  Bb4 {[%clk 0:03:02]} 5. Nd5 {[%clk 0:02:58]}  Bc5 {[%clk 0:03:01]} 6. c3 {[%clk 0:02:54]}  O-O {[%clk 0:02:46]} 7. d3 {[%clk 0:02:52]}  Nxd5 {[%clk 0:02:45]} 8. exd5 {[%clk 0:02:52]}  Ne7 {[%clk 0:02:45]} 9. Nxe5 {[%clk 0:02:47]}  Nxd5 {[%clk 0:02:45]} 10. d4 {[%clk 0:02:48]}  Bb6 {[%clk 0:02:43]} 11. Be2 {[%clk 0:02:37]}  d6 {[%clk 0:02:43]} 12. Nc4 {[%clk 0:02:29]}  Re8 {[%clk 0:02:40]} 13. O-O {[%clk 0:02:29]}  Be6 {[%clk 0:02:39]} 14. a4 {[%clk 0:02:29]}  a6 {[%clk 0:02:34]} 15. Nxb6 {[%clk 0:02:20]}  Nxb6 {[%clk 0:02:35]} 16. a5 {[%clk 0:02:15]}  Nd5 {[%clk 0:02:34]} 17. Bf3 {[%clk 0:02:13]}  c6 {[%clk 0:02:33]} 18. Re1 {[%clk 0:02:10]}  Qf6 {[%clk 0:02:30]} 19. Bd2 {[%clk 0:02:06]}  h6 {[%clk 0:02:29]} 20. Ra3 {[%clk 0:02:02]}  Nc7 {[%clk 0:02:24]} 21. Kh2 {[%clk 0:01:55]}  Bd5 {[%clk 0:02:22]} 22. Bxd5 {[%clk 0:01:47]}  Nxd5 {[%clk 0:02:23]} 23. c4 {[%clk 0:01:44]}  Nc7 {[%clk 0:02:17]} 24. Rg3 {[%clk 0:01:27]}  Rxe1 {[%clk 0:02:07]} 25. Bxe1 {[%clk 0:01:27]}  d5 {[%clk 0:02:07]} 26. b3 {[%clk 0:01:25]}  Re8 {[%clk 0:02:04]} 27. Rf3 {[%clk 0:01:20]}  Qd6+ {[%clk 0:02:03]} 28. g3 {[%clk 0:01:20]}  Re4 {[%clk 0:02:02]} 29. Bc3 {[%clk 0:01:17]}  Ne6 {[%clk 0:02:01]} 30. Rd3 {[%clk 0:01:09]}  Ng5 {[%clk 0:01:54]} 31. h4 {[%clk 0:01:08]}  Rxh4+ {[%clk 0:01:54]} 32. Kg2 {[%clk 0:01:06]}  Re4 {[%clk 0:01:54]} 33. Qd2 {[%clk 0:00:56]}  Qe6 {[%clk 0:01:51]} 34. Kg1 {[%clk 0:00:46]}  Re2 {[%clk 0:01:45]} 35. Qc1 {[%clk 0:00:05]}  Nh3+ {[%clk 0:01:43]} 36. Kh1 {[%clk 0:00:02]}  Nxf2+ {[%clk 0:01:43]} 0-1


[Site "https://www.chess.com"]